[Event "Early-Titled-Tuesday-Blitz-October-03-2023"]
[Site "Chess.com"]
[Date "2023.10.03"]
[Round "5"]
[White "SashaKuzhilniy"]
[Black "Polish_fighter3000"]
[Result "1/2-1/2"]
[WhiteElo "2621"]
[BlackElo "3064"]
[TimeControl "180+1"]
[EndTime "8:59:26 PDT"]
[Termination "Game drawn - insufficient material"]

1. e4 {[%clk 0:03:00.9]} 1... g5 {[%clk 0:02:58]} 2. d4 {[%clk 0:02:59.8]} 2...
h6 {[%clk 0:02:56]} 3. h4 {[%clk 0:02:58.6]} 3... g4 {[%clk 0:02:54]} 4. Qxg4
{[%clk 0:02:53.5]} 4... d5 {[%clk 0:02:53.3]} 5. Qe2 {[%clk 0:02:43.2]} 5...
dxe4 {[%clk 0:02:53.4]} 6. Qxe4 {[%clk 0:02:44.1]} 6... Nf6 {[%clk 0:02:53.8]}
7. Qd3 {[%clk 0:02:41.7]} 7... Nc6 {[%clk 0:02:52.7]} 8. Nf3 {[%clk 0:02:40.8]}
8... Rg8 {[%clk 0:02:47.7]} 9. Nc3 {[%clk 0:02:29.6]} 9... a6 {[%clk 0:02:20.9]}
10. a3 {[%clk 0:02:27.5]} 10... Qd6 {[%clk 0:02:13.5]} 11. g3 {[%clk 0:02:20.1]}
11... Rxg3 {[%clk 0:01:58.7]} 12. fxg3 {[%clk 0:01:32.7]} 12... Qxg3+ {[%clk
0:01:59.6]} 13. Kd1 {[%clk 0:01:33.3]} 13... Bg4 {[%clk 0:01:58.4]} 14. Be2
{[%clk 0:01:23.5]} 14... O-O-O {[%clk 0:01:59]} 15. Rg1 {[%clk 0:01:03.9]} 15...
Qh3 {[%clk 0:01:55.4]} 16. Bd2 {[%clk 0:00:36.1]} 16... Bf5 {[%clk 0:01:47.2]}
17. Qe3 {[%clk 0:00:33.1]} 17... Ng4 {[%clk 0:00:34.7]} 18. Qf4 {[%clk
0:00:32.6]} 18... e6 {[%clk 0:00:35.4]} 19. Bf1 {[%clk 0:00:19.9]} 19... Nxd4
{[%clk 0:00:18.7]} 20. Bxh3 {[%clk 0:00:12.7]} 20... Nf2+ {[%clk 0:00:19.3]} 21.
Kc1 {[%clk 0:00:09.8]} 21... Nxh3 {[%clk 0:00:20.2]} 22. Qg3 {[%clk 0:00:06.4]}
22... Nxf3 {[%clk 0:00:18.2]} 23. Qxf3 {[%clk 0:00:06]} 23... Nxg1 {[%clk
0:00:18.1]} 24. Qf2 {[%clk 0:00:06.1]} 24... Nh3 {[%clk 0:00:16.1]} 25. Qe3
{[%clk 0:00:05.3]} 25... Bd6 {[%clk 0:00:15.2]} 26. Ne2 {[%clk 0:00:03.7]} 26...
Be7 {[%clk 0:00:07.2]} 27. b3 {[%clk 0:00:03.8]} 27... Bxh4 {[%clk 0:00:06.8]}
28. Qxh6 {[%clk 0:00:04]} 28... Be7 {[%clk 0:00:03.2]} 29. Bc3 {[%clk
0:00:03.6]} 29... Bg5+ {[%clk 0:00:03.1]} 30. Qxg5 {[%clk 0:00:04.1]} 30... Nxg5
{[%clk 0:00:04]} 31. Kb2 {[%clk 0:00:04.8]} 31... Ne4 {[%clk 0:00:04]} 32. Nd4
{[%clk 0:00:04.7]} 32... Nxc3 {[%clk 0:00:03.9]} 33. Kxc3 {[%clk 0:00:05.6]}
33... Bg6 {[%clk 0:00:04.5]} 34. Rf1 {[%clk 0:00:05.7]} 34... Rh8 {[%clk
0:00:04.8]} 35. Nf3 {[%clk 0:00:06]} 35... Rh3 {[%clk 0:00:05.3]} 36. Kb2 {[%clk
0:00:06.3]} 36... f6 {[%clk 0:00:05.4]} 37. Nd4 {[%clk 0:00:06.3]} 37... e5
{[%clk 0:00:05.5]} 38. Rxf6 {[%clk 0:00:06.7]} 38... exd4 {[%clk 0:00:05.3]} 39.
Rxg6 {[%clk 0:00:07.1]} 39... Rh8 {[%clk 0:00:06]} 40. Rg4 {[%clk 0:00:06.5]}
40... Rd8 {[%clk 0:00:06.6]} 41. a4 {[%clk 0:00:06.9]} 41... b6 {[%clk
0:00:06.8]} 42. b4 {[%clk 0:00:06.9]} 42... Kb7 {[%clk 0:00:06.8]} 43. Kb3
{[%clk 0:00:07.5]} 43... Rd6 {[%clk 0:00:07.2]} 44. Kc4 {[%clk 0:00:06.5]} 44...
Rc6+ {[%clk 0:00:07.7]} 45. Kb3 {[%clk 0:00:07.1]} 45... Rc3+ {[%clk 0:00:07.9]}
46. Kb2 {[%clk 0:00:07.7]} 46... Rc4 {[%clk 0:00:04.9]} 47. Kb3 {[%clk 0:00:08]}
47... b5 {[%clk 0:00:05]} 48. axb5 {[%clk 0:00:08.9]} 48... axb5 {[%clk
0:00:05.6]} 49. Rg5 {[%clk 0:00:09.1]} 49... c6 {[%clk 0:00:05.8]} 50. Rg7+
{[%clk 0:00:08.9]} 50... Kc8 {[%clk 0:00:06.1]} 51. Rg8+ {[%clk 0:00:08.6]}
51... Kd7 {[%clk 0:00:06.4]} 52. Rg7+ {[%clk 0:00:09.1]} 52... Ke6 {[%clk
0:00:06.9]} 53. Rg6+ {[%clk 0:00:09.6]} 53... Kf5 {[%clk 0:00:07.5]} 54. Rg8
{[%clk 0:00:10]} 54... Rc3+ {[%clk 0:00:07]} 55. Kb2 {[%clk 0:00:10]} 55... Ke4
{[%clk 0:00:07.7]} 56. Re8+ {[%clk 0:00:09.8]} 56... Kd5 {[%clk 0:00:07.9]} 57.
Re7 {[%clk 0:00:09.8]} 57... Kc4 {[%clk 0:00:07.5]} 58. Rd7 {[%clk 0:00:10]}
58... Re3 {[%clk 0:00:07.7]} 59. Rd6 {[%clk 0:00:10.2]} 59... Re2 {[%clk
0:00:04.5]} 60. Rxc6+ {[%clk 0:00:09.9]} 60... Kxb4 {[%clk 0:00:05.1]} 61. Rd6
{[%clk 0:00:09.9]} 61... Kc5 {[%clk 0:00:05.7]} 62. Rd8 {[%clk 0:00:10.1]} 62...
Rd2 {[%clk 0:00:04.7]} 63. Kb3 {[%clk 0:00:10.1]} 63... Rd1 {[%clk 0:00:04.4]}
64. Rc8+ {[%clk 0:00:10.5]} 64... Kb6 {[%clk 0:00:04.9]} 65. Rd8 {[%clk
0:00:10.9]} 65... Rb1+ {[%clk 0:00:05.3]} 66. Ka2 {[%clk 0:00:11.4]} 66... Rb4
{[%clk 0:00:05.3]} 67. Ka3 {[%clk 0:00:11.2]} 67... Rc4 {[%clk 0:00:05.7]} 68.
Kb2 {[%clk 0:00:11.4]} 68... Ka5 {[%clk 0:00:05.8]} 69. Kb3 {[%clk 0:00:11.4]}
69... Rc3+ {[%clk 0:00:05.8]} 70. Kb2 {[%clk 0:00:11.8]} 70... Rc4 {[%clk
0:00:06.5]} 71. Kb3 {[%clk 0:00:12]} 71... Kb6 {[%clk 0:00:07.2]} 72. Rb8+
{[%clk 0:00:10.2]} 72... Kc6 {[%clk 0:00:07.1]} 73. Rc8+ {[%clk 0:00:10.7]}
73... Kd5 {[%clk 0:00:07.3]} 74. Rd8+ {[%clk 0:00:09.9]} 74... Ke4 {[%clk
0:00:07.7]} 75. Re8+ {[%clk 0:00:10.2]} 75... Kf3 {[%clk 0:00:08.1]} 76. Rf8+
{[%clk 0:00:10.6]} 76... Ke3 {[%clk 0:00:08]} 77. Rf5 {[%clk 0:00:10.2]} 77...
Kd2 {[%clk 0:00:07.8]} 78. Rf2+ {[%clk 0:00:08.7]} 78... Kd1 {[%clk 0:00:07.8]}
79. Rh2 {[%clk 0:00:08.7]} 79... Rc3+ {[%clk 0:00:07.7]} 80. Kb2 {[%clk
0:00:08.2]} 80... b4 {[%clk 0:00:08.2]} 81. Rh1+ {[%clk 0:00:08.4]} 81... Kd2
{[%clk 0:00:08.8]} 82. Rh2+ {[%clk 0:00:09]} 82... Ke3 {[%clk 0:00:09.3]} 83.
Rh3+ {[%clk 0:00:09.5]} 83... Ke4 {[%clk 0:00:09.8]} 84. Rh4+ {[%clk 0:00:10]}
84... Kd5 {[%clk 0:00:09.9]} 85. Rh5+ {[%clk 0:00:10.6]} 85... Kc4 {[%clk
0:00:10.3]} 86. Rh8 {[%clk 0:00:11.3]} 86... Rg3 {[%clk 0:00:08.3]} 87. Rc8+
{[%clk 0:00:11.5]} 87... Kd5 {[%clk 0:00:08.4]} 88. Rd8+ {[%clk 0:00:12]} 88...
Ke4 {[%clk 0:00:08.8]} 89. Rb8 {[%clk 0:00:12.7]} 89... Ke3 {[%clk 0:00:04.9]}
90. Rxb4 {[%clk 0:00:12.3]} 90... Rg2 {[%clk 0:00:05.1]} 91. Rb3+ {[%clk
0:00:12.4]} 91... Ke4 {[%clk 0:00:05.7]} 92. Rh3 {[%clk 0:00:12.3]} 92... Rf2
{[%clk 0:00:05.4]} 93. Rh4+ {[%clk 0:00:12.5]} 93... Kd5 {[%clk 0:00:06]} 94.
Rh3 {[%clk 0:00:12.7]} 94... Kc4 {[%clk 0:00:06.4]} 95. Ra3 {[%clk 0:00:13.4]}
95... Re2 {[%clk 0:00:06.6]} 96. Ra4+ {[%clk 0:00:13.8]} 96... Kc5 {[%clk
0:00:07.2]} 97. Ra3 {[%clk 0:00:14.6]} 97... Kb4 {[%clk 0:00:07.7]} 98. Rb3+
{[%clk 0:00:14.6]} 98... Kc4 {[%clk 0:00:08.2]} 99. Rh3 {[%clk 0:00:15.4]} 99...
Re8 {[%clk 0:00:07.4]} 100. Kc1 {[%clk 0:00:15.5]} 100... Ra8 {[%clk 0:00:07.3]}
101. Kd2 {[%clk 0:00:15.7]} 101... Rg8 {[%clk 0:00:07.4]} 102. Rh7 {[%clk
0:00:15.9]} 102... Rg2+ {[%clk 0:00:07.5]} 103. Kc1 {[%clk 0:00:16.5]} 103...
Rg5 {[%clk 0:00:07.6]} 104. Rh3 {[%clk 0:00:16.1]} 104... Kb4 {[%clk 0:00:07.4]}
105. Rb3+ {[%clk 0:00:15.6]} 105... Kc5 {[%clk 0:00:08]} 106. Rd3 {[%clk
0:00:16.5]} 106... Kd5 {[%clk 0:00:07]} 107. Rh3 {[%clk 0:00:17]} 107... Kc4
{[%clk 0:00:07.2]} 108. Kb2 {[%clk 0:00:17.5]} 108... Rb5+ {[%clk 0:00:07.3]}
109. Kc1 {[%clk 0:00:18.1]} 109... Rb6 {[%clk 0:00:07.3]} 110. Rg3 {[%clk
0:00:18]} 110... Re6 {[%clk 0:00:07.3]} 111. Kd2 {[%clk 0:00:18.4]} 111... Rf6
{[%clk 0:00:07.5]} 112. Ra3 {[%clk 0:00:18.4]} 112... Rf2+ {[%clk 0:00:07.6]}
113. Kc1 {[%clk 0:00:18.9]} 113... Re2 {[%clk 0:00:08.2]} 114. Rh3 {[%clk
0:00:18.6]} 114... Kd5 {[%clk 0:00:07.8]} 115. Kd1 {[%clk 0:00:18.6]} 115... Rg2
{[%clk 0:00:08.2]} 116. Rh8 {[%clk 0:00:18.5]} 116... Rg1+ {[%clk 0:00:07.8]}
117. Kd2 {[%clk 0:00:18.7]} 117... Rg2+ {[%clk 0:00:08.5]} 118. Kc1 {[%clk
0:00:18.8]} 118... Rg6 {[%clk 0:00:07.9]} 119. Rh3 {[%clk 0:00:19]} 119... Ra6
{[%clk 0:00:06.7]} 120. Rb3 {[%clk 0:00:19]} 120... Re6 {[%clk 0:00:05.6]} 121.
Kd2 {[%clk 0:00:19.4]} 121... Rh6 {[%clk 0:00:05.3]} 122. Rg3 {[%clk 0:00:19.4]}
122... Rh2+ {[%clk 0:00:05.4]} 123. Kc1 {[%clk 0:00:20]} 123... Ke4 {[%clk
0:00:05.6]} 124. Rb3 {[%clk 0:00:19.3]} 124... Re2 {[%clk 0:00:05.3]} 125. Kd1
{[%clk 0:00:19.1]} 125... Re3 {[%clk 0:00:05.7]} 126. Rxe3+ {[%clk 0:00:11.9]}
126... Kxe3 {[%clk 0:00:06.6]} 127. Ke1 {[%clk 0:00:12.2]} 127... Kf3 {[%clk
0:00:06]} 128. Kd2 {[%clk 0:00:12]} 128... Ke4 {[%clk 0:00:06.7]} 129. Ke2
{[%clk 0:00:12.5]} 129... Ke5 {[%clk 0:00:06]} 130. Kd3 {[%clk 0:00:13]} 130...
Kd5 {[%clk 0:00:06.6]} 131. c3 {[%clk 0:00:13.9]} 131... dxc3 {[%clk 0:00:06.9]}
132. Kxc3 {[%clk 0:00:14.8]} 1/2-1/2

[Event "Early-Titled-Tuesday-Blitz-October-03-2023"]
[Site "Chess.com"]
[Date "2023.10.03"]
[Round "6"]
[White "vasblesk"]
[Black "whiteglovethief"]
[Result "1-0"]
[WhiteElo "2702"]
[BlackElo "2523"]
[TimeControl "180+1"]
[EndTime "9:02:41 PDT"]
[Termination "vasblesk won by resignation"]

1. d4 {[%clk 0:03:00.9]} 1... Nf6 {[%clk 0:02:57.1]} 2. c4 {[%clk 0:03:00.3]}
2... c5 {[%clk 0:02:57.1]} 3. d5 {[%clk 0:03:00.3]} 3... b5 {[%clk 0:02:57.4]}
4. cxb5 {[%clk 0:03:00.3]} 4... a6 {[%clk 0:02:57.8]} 5. bxa6 {[%clk 0:03:00.9]}
5... g6 {[%clk 0:02:58.4]} 6. Nc3 {[%clk 0:03:01.2]} 6... Bg7 {[%clk 0:02:59]}
7. e4 {[%clk 0:03:01.9]} 7... d6 {[%clk 0:02:59.6]} 8. a7 {[%clk 0:03:00.9]}
8... Rxa7 {[%clk 0:02:59.2]} 9. Nf3 {[%clk 0:03:01.2]} 9... O-O {[%clk
0:02:58.8]} 10. Bd3 {[%clk 0:03:00.8]} 10... Ba6 {[%clk 0:02:58.6]} 11. O-O
{[%clk 0:03:00.8]} 11... Nfd7 {[%clk 0:02:56]} 12. Bxa6 {[%clk 0:02:48.2]} 12...
Nxa6 {[%clk 0:02:55.5]} 13. Bd2 {[%clk 0:02:48.3]} 13... c4 {[%clk 0:02:51.9]}
14. Qe2 {[%clk 0:02:45.4]} 14... Qc7 {[%clk 0:02:48.1]} 15. Nb5 {[%clk
0:02:42.6]} 15... Qb6 {[%clk 0:02:48]} 16. Nxa7 {[%clk 0:02:38.4]} 16... Qxa7
{[%clk 0:02:48.9]} 17. Bc3 {[%clk 0:02:38.2]} 17... Bxc3 {[%clk 0:02:43.1]} 18.
bxc3 {[%clk 0:02:39.1]} 18... Nb6 {[%clk 0:02:40.9]} 19. Nd4 {[%clk 0:02:25.3]}
19... Nc5 {[%clk 0:02:41.4]} 20. Nc6 {[%clk 0:02:23.6]} 20... Qc7 {[%clk
0:02:40.6]} 21. Rfb1 {[%clk 0:02:23.1]} 21... e6 {[%clk 0:02:37.3]} 22. Nb4
{[%clk 0:02:15.1]} 22... e5 {[%clk 0:02:30.8]} 23. Nc6 {[%clk 0:02:04.6]} 23...
Nd3 {[%clk 0:02:24.6]} 24. a4 {[%clk 0:02:02.9]} 24... f5 {[%clk 0:02:24.1]} 25.
a5 {[%clk 0:01:59.8]} 25... Nd7 {[%clk 0:02:21.7]} 26. exf5 {[%clk 0:01:58.5]}
26... Rxf5 {[%clk 0:02:19.9]} 27. Ne7+ {[%clk 0:01:57.3]} 27... Kg7 {[%clk
0:02:18.6]} 28. Nxf5+ {[%clk 0:01:58.2]} 28... gxf5 {[%clk 0:02:18.7]} 29. a6
{[%clk 0:01:57.6]} 29... Nb6 {[%clk 0:02:17.8]} 1-0

[Event "Early-Titled-Tuesday-Blitz-October-03-2023"]
[Site "Chess.com"]
[Date "2023.10.03"]
[Round "6"]
[White "QuintilianoR"]
[Black "Aleksandar-Topalov"]
[Result "1-0"]
[WhiteElo "2649"]
[BlackElo "2406"]
[TimeControl "180+1"]
[EndTime "9:03:12 PDT"]
[Termination "QuintilianoR won by resignation"]

1. Nf3 {[%clk 0:03:00.9]} 1... e6 {[%clk 0:02:55.3]} 2. g3 {[%clk 0:02:59.4]}
2... f5 {[%clk 0:02:53.9]} 3. Bg2 {[%clk 0:02:59.2]} 3... Nf6 {[%clk 0:02:53.8]}
4. c4 {[%clk 0:02:58.3]} 4... Be7 {[%clk 0:02:51.8]} 5. b3 {[%clk 0:02:57.9]}
5... d6 {[%clk 0:02:51.8]} 6. Bb2 {[%clk 0:02:58.4]} 6... e5 {[%clk 0:02:51.8]}
7. O-O {[%clk 0:02:56.8]} 7... O-O {[%clk 0:02:51.4]} 8. Nc3 {[%clk 0:02:49.3]}
8... Nc6 {[%clk 0:02:47.4]} 9. d3 {[%clk 0:02:44.6]} 9... h6 {[%clk 0:02:42.2]}
10. Nd2 {[%clk 0:02:38.4]} 10... Be6 {[%clk 0:02:40.1]} 11. a3 {[%clk
0:02:36.8]} 11... a5 {[%clk 0:02:39.6]} 12. Nd5 {[%clk 0:02:36.4]} 12... Qd7
{[%clk 0:02:31.5]} 13. e3 {[%clk 0:02:35.2]} 13... f4 {[%clk 0:02:15.8]} 14.
exf4 {[%clk 0:02:31.2]} 14... exf4 {[%clk 0:02:15.9]} 15. Re1 {[%clk 0:02:27.4]}
15... fxg3 {[%clk 0:02:12.6]} 16. hxg3 {[%clk 0:02:17.5]} 16... Ne5 {[%clk
0:01:50.7]} 17. Nxe7+ {[%clk 0:02:10.8]} 17... Qxe7 {[%clk 0:01:49.8]} 18. Bxe5
{[%clk 0:02:11.2]} 18... dxe5 {[%clk 0:01:50]} 19. Rxe5 {[%clk 0:02:12.1]} 19...
Qd6 {[%clk 0:01:49]} 20. Re3 {[%clk 0:02:04.8]} 20... Ng4 {[%clk 0:01:42.9]} 21.
Rxe6 {[%clk 0:02:03.9]} 21... Qxd3 {[%clk 0:01:36.2]} 22. Qxg4 {[%clk
0:01:59.9]} 22... Qxd2 {[%clk 0:01:36.2]} 23. Re2 {[%clk 0:01:59.6]} 23... Qd4
{[%clk 0:01:33.4]} 24. Qxd4 {[%clk 0:01:57]} 1-0

[Event "Early-Titled-Tuesday-Blitz-October-03-2023"]
[Site "Chess.com"]
[Date "2023.10.03"]
[Round "6"]
[White "blitzking1729"]
[Black "Darko-Dimitrijevic"]
[Result "1-0"]
[WhiteElo "2722"]
[BlackElo "2255"]
[TimeControl "180+1"]
[EndTime "9:03:47 PDT"]
[Termination "blitzking1729 won by resignation"]

1. c4 {[%clk 0:03:00.9]} 1... g6 {[%clk 0:02:57]} 2. Nc3 {[%clk 0:03:00.4]} 2...
Bg7 {[%clk 0:02:57]} 3. g3 {[%clk 0:03:00.3]} 3... c5 {[%clk 0:02:57.1]} 4. Bg2
{[%clk 0:03:00.5]} 4... Nc6 {[%clk 0:02:56.4]} 5. Nf3 {[%clk 0:03:01.1]} 5... d6
{[%clk 0:02:56.1]} 6. d3 {[%clk 0:03:00.3]} 6... Nf6 {[%clk 0:02:55.1]} 7. O-O
{[%clk 0:02:58.5]} 7... O-O {[%clk 0:02:55.1]} 8. Rb1 {[%clk 0:02:59.1]} 8... a6
{[%clk 0:02:54.6]} 9. b3 {[%clk 0:02:58.2]} 9... Rb8 {[%clk 0:02:53.8]} 10. Bb2
{[%clk 0:02:54.5]} 10... b5 {[%clk 0:02:52.4]} 11. cxb5 {[%clk 0:02:54.6]} 11...
axb5 {[%clk 0:02:52]} 12. d4 {[%clk 0:02:53.6]} 12... Qb6 {[%clk 0:02:39.5]} 13.
dxc5 {[%clk 0:02:45.7]} 13... dxc5 {[%clk 0:02:38.7]} 14. Nd5 {[%clk 0:02:42.7]}
14... Nxd5 {[%clk 0:02:37.2]} 15. Bxg7 {[%clk 0:02:41.9]} 15... Ne3 {[%clk
0:02:23.3]} 16. fxe3 {[%clk 0:02:39.2]} 16... Kxg7 {[%clk 0:02:23.2]} 17. Qc2
{[%clk 0:02:35.6]} 17... Nb4 {[%clk 0:02:01.6]} 18. Qc3+ {[%clk 0:02:34.2]}
18... Kg8 {[%clk 0:01:58.5]} 19. a3 {[%clk 0:01:42.2]} 19... Na6 {[%clk
0:01:55.7]} 20. Ne5 {[%clk 0:01:40.4]} 20... Bb7 {[%clk 0:01:47]} 21. Nd7 {[%clk
0:01:35.3]} 21... Qe6 {[%clk 0:01:42.8]} 22. Nxf8 {[%clk 0:01:32.7]} 1-0

[Event "Early-Titled-Tuesday-Blitz-October-03-2023"]
[Site "Chess.com"]
[Date "2023.10.03"]
[Round "6"]
[White "Guzman70"]
[Black "JAN2404"]
[Result "1-0"]
[WhiteElo "2305"]
[BlackElo "2067"]
[TimeControl "180+1"]
[EndTime "9:04:05 PDT"]
[Termination "Guzman70 won by resignation"]

1. Nf3 {[%clk 0:03:00.9]} 1... c5 {[%clk 0:02:47.6]} 2. e4 {[%clk 0:03:00.2]}
2... d6 {[%clk 0:02:46]} 3. c3 {[%clk 0:02:59.3]} 3... Nf6 {[%clk 0:02:45.8]} 4.
h3 {[%clk 0:02:58.5]} 4... Nc6 {[%clk 0:02:46.2]} 5. Qc2 {[%clk 0:02:54.1]} 5...
e6 {[%clk 0:02:45.5]} 6. Bb5 {[%clk 0:02:53.6]} 6... Bd7 {[%clk 0:02:41.1]} 7.
O-O {[%clk 0:02:53.5]} 7... Be7 {[%clk 0:02:40.3]} 8. Re1 {[%clk 0:02:53.1]}
8... O-O {[%clk 0:02:40.7]} 9. a4 {[%clk 0:02:52.6]} 9... a6 {[%clk 0:02:36]}
10. Bf1 {[%clk 0:02:52.3]} 10... Rc8 {[%clk 0:02:25.6]} 11. Na3 {[%clk
0:02:50.7]} 11... h6 {[%clk 0:02:19.7]} 12. d3 {[%clk 0:02:49.1]} 12... Re8
{[%clk 0:02:08.7]} 13. Bf4 {[%clk 0:02:44.1]} 13... Bf8 {[%clk 0:01:57]} 14. Nc4
{[%clk 0:02:42.2]} 14... d5 {[%clk 0:01:48.7]} 15. Nd6 {[%clk 0:02:38.3]} 15...
Bxd6 {[%clk 0:01:48.3]} 16. Bxd6 {[%clk 0:02:39.2]} 16... d4 {[%clk 0:01:39]}
17. Bxc5 {[%clk 0:02:33.8]} 17... dxc3 {[%clk 0:01:30.2]} 18. bxc3 {[%clk
0:02:34.7]} 18... Qa5 {[%clk 0:01:29.3]} 19. d4 {[%clk 0:02:31.8]} 19... b6
{[%clk 0:01:10.1]} 20. Bd6 {[%clk 0:02:28.5]} 20... Red8 {[%clk 0:00:38.1]} 21.
Qd3 {[%clk 0:02:25.9]} 21... Be8 {[%clk 0:00:33.2]} 22. Nd2 {[%clk 0:02:23.7]}
22... Rxd6 {[%clk 0:00:30.5]} 23. Nc4 {[%clk 0:02:23.9]} 23... Nb4 {[%clk
0:00:20.2]} 24. cxb4 {[%clk 0:02:18.9]} 1-0

[Event "Early-Titled-Tuesday-Blitz-October-03-2023"]
[Site "Chess.com"]
[Date "2023.10.03"]
[Round "6"]
[White "Casper"]
[Black "Ermito2020"]
[Result "0-1"]
[WhiteElo "2417"]
[BlackElo "2616"]
[TimeControl "180+1"]
[EndTime "9:04:06 PDT"]
[Termination "Ermito2020 won by resignation"]

1. e4 {[%clk 0:03:00.9]} 1... e6 {[%clk 0:02:59.9]} 2. d4 {[%clk 0:02:59.7]}
2... d5 {[%clk 0:03:00.4]} 3. Bd3 {[%clk 0:02:59.9]} 3... dxe4 {[%clk
0:02:59.6]} 4. Bxe4 {[%clk 0:03:00.8]} 4... Nf6 {[%clk 0:03:00.2]} 5. Bd3 {[%clk
0:03:00.8]} 5... c5 {[%clk 0:02:51.5]} 6. Nf3 {[%clk 0:02:56.5]} 6... Nc6 {[%clk
0:02:46.7]} 7. dxc5 {[%clk 0:02:53.2]} 7... Bxc5 {[%clk 0:02:47.6]} 8. O-O
{[%clk 0:02:54.1]} 8... O-O {[%clk 0:02:44.8]} 9. Nc3 {[%clk 0:02:53.1]} 9...
Nb4 {[%clk 0:02:41.6]} 10. Bg5 {[%clk 0:02:45.4]} 10... Nxd3 {[%clk 0:02:39.8]}
11. cxd3 {[%clk 0:02:46.3]} 11... Be7 {[%clk 0:02:38.8]} 12. d4 {[%clk
0:02:44.5]} 12... b6 {[%clk 0:02:35.6]} 13. Ne5 {[%clk 0:02:16.6]} 13... Bb7
{[%clk 0:02:34]} 14. Qd3 {[%clk 0:02:15.8]} 14... Rc8 {[%clk 0:02:29.1]} 15.
Rad1 {[%clk 0:02:13.3]} 15... Nd5 {[%clk 0:02:21.9]} 16. Bxe7 {[%clk 0:02:03]}
16... Qxe7 {[%clk 0:02:22.8]} 17. Rfe1 {[%clk 0:02:01.2]} 17... Nf4 {[%clk
0:01:49]} 18. Qg3 {[%clk 0:01:59.7]} 18... Nxg2 {[%clk 0:01:48.4]} 19. Re4
{[%clk 0:01:18]} 19... Rxc3 {[%clk 0:01:47.4]} 20. bxc3 {[%clk 0:01:06]} 20...
Bxe4 {[%clk 0:01:46.9]} 21. f3 {[%clk 0:01:06.7]} 21... Ne3 {[%clk 0:01:39.8]}
22. Re1 {[%clk 0:01:03.4]} 22... Nf5 {[%clk 0:01:39.5]} 0-1

[Event "Early-Titled-Tuesday-Blitz-October-03-2023"]
[Site "Chess.com"]
[Date "2023.10.03"]
[Round "6"]
[White "MatthewG-p4p"]
[Black "jk13"]
[Result "1-0"]
[WhiteElo "2838"]
[BlackElo "2632"]
[TimeControl "180+1"]
[EndTime "9:04:17 PDT"]
[Termination "MatthewG-p4p won by resignation"]

1. f4 {[%clk 0:02:56.7]} 1... d5 {[%clk 0:03:00.1]} 2. Nf3 {[%clk 0:02:56.2]}
2... c6 {[%clk 0:03:00.8]} 3. g3 {[%clk 0:02:56.8]} 3... Bg4 {[%clk 0:03:01.3]}
4. Bg2 {[%clk 0:02:57.5]} 4... Nd7 {[%clk 0:03:01.7]} 5. O-O {[%clk 0:02:58.1]}
5... Qc7 {[%clk 0:03:02.2]} 6. d3 {[%clk 0:02:58.8]} 6... Bxf3 {[%clk
0:03:01.4]} 7. Bxf3 {[%clk 0:02:59.7]} 7... e5 {[%clk 0:03:01.9]} 8. Nc3 {[%clk
0:02:59.7]} 8... Ngf6 {[%clk 0:03:01.9]} 9. e4 {[%clk 0:02:58.3]} 9... dxe4
{[%clk 0:03:02.8]} 10. Nxe4 {[%clk 0:02:58.4]} 10... Nxe4 {[%clk 0:03:02.1]} 11.
Bxe4 {[%clk 0:02:59.3]} 11... Bc5+ {[%clk 0:03:00.5]} 12. Kh1 {[%clk 0:02:59.2]}
12... O-O-O {[%clk 0:02:49.3]} 13. c3 {[%clk 0:02:44.4]} 13... g6 {[%clk
0:02:39.1]} 14. fxe5 {[%clk 0:02:41.8]} 14... Nxe5 {[%clk 0:02:40]} 15. d4
{[%clk 0:02:41.9]} 15... f5 {[%clk 0:02:27]} 16. Bg2 {[%clk 0:02:39.6]} 16...
Ng4 {[%clk 0:02:14.4]} 17. Qf3 {[%clk 0:02:22.8]} 17... Bd6 {[%clk 0:02:14.2]}
18. Bg5 {[%clk 0:02:19.3]} 18... Rde8 {[%clk 0:02:06]} 19. Rae1 {[%clk 0:02:19]}
19... h6 {[%clk 0:01:58.2]} 20. Bd2 {[%clk 0:02:17.4]} 20... h5 {[%clk
0:01:54.2]} 21. Rxe8+ {[%clk 0:01:59.7]} 21... Rxe8 {[%clk 0:01:53.9]} 22. c4
{[%clk 0:02:00.6]} 22... Qe7 {[%clk 0:01:39.3]} 23. c5 {[%clk 0:01:53.1]} 23...
Bc7 {[%clk 0:01:39.4]} 24. d5 {[%clk 0:01:52.9]} 24... Qxc5 {[%clk 0:01:14.2]}
25. dxc6 {[%clk 0:01:53.1]} 25... b6 {[%clk 0:00:55.7]} 26. Qd3 {[%clk
0:01:38.6]} 26... Rd8 {[%clk 0:00:52]} 27. Qa6+ {[%clk 0:01:38.3]} 1-0

[Event "Early-Titled-Tuesday-Blitz-October-03-2023"]
[Site "Chess.com"]
[Date "2023.10.03"]
[Round "6"]
[White "artin10862"]
[Black "lefonghua"]
[Result "0-1"]
[WhiteElo "2814"]
[BlackElo "2601"]
[TimeControl "180+1"]
[EndTime "9:04:24 PDT"]
[Termination "lefonghua won by resignation"]

1. e4 {[%clk 0:03:00.9]} 1... c5 {[%clk 0:02:58.6]} 2. Nf3 {[%clk 0:03:00.2]}
2... g6 {[%clk 0:02:58.9]} 3. c3 {[%clk 0:02:51.6]} 3... Nc6 {[%clk 0:02:57.7]}
4. d4 {[%clk 0:02:52]} 4... d5 {[%clk 0:02:57.7]} 5. e5 {[%clk 0:02:31.7]} 5...
cxd4 {[%clk 0:02:56.9]} 6. cxd4 {[%clk 0:02:31.2]} 6... Bg4 {[%clk 0:02:57]} 7.
Bb5 {[%clk 0:02:29]} 7... Qb6 {[%clk 0:02:56.1]} 8. Nc3 {[%clk 0:02:27]} 8... e6
{[%clk 0:02:51.6]} 9. O-O {[%clk 0:02:14.7]} 9... Ne7 {[%clk 0:02:46.4]} 10. Bg5
{[%clk 0:02:11.8]} 10... Bg7 {[%clk 0:02:41.7]} 11. Bxe7 {[%clk 0:02:01.1]}
11... Kxe7 {[%clk 0:02:39.8]} 12. Bxc6 {[%clk 0:02:01.7]} 12... Qxc6 {[%clk
0:02:34.5]} 13. h3 {[%clk 0:01:59.5]} 13... Bxf3 {[%clk 0:02:33]} 14. Qxf3
{[%clk 0:01:59.4]} 14... Rhc8 {[%clk 0:02:31.8]} 15. Rad1 {[%clk 0:01:47.6]}
15... Kf8 {[%clk 0:02:25]} 16. h4 {[%clk 0:01:46.3]} 16... h5 {[%clk 0:02:23.9]}
17. g4 {[%clk 0:01:45.5]} 17... hxg4 {[%clk 0:02:21.5]} 18. Qxg4 {[%clk
0:01:46.4]} 18... b5 {[%clk 0:02:11.4]} 19. Rc1 {[%clk 0:01:41.5]} 19... Bh6
{[%clk 0:01:47.6]} 20. f4 {[%clk 0:01:37.9]} 20... Qb6 {[%clk 0:01:26.6]} 21.
Ne2 {[%clk 0:01:37.1]} 21... Ke7 {[%clk 0:01:22.7]} 22. h5 {[%clk 0:01:33.4]}
22... Rg8 {[%clk 0:01:19.9]} 23. Qh4+ {[%clk 0:01:31.1]} 23... g5 {[%clk
0:01:19.1]} 24. Qg4 {[%clk 0:01:19.9]} 24... gxf4 {[%clk 0:01:15]} 0-1